bitfinex-derivatives/quotes_ETHF0:USTF0_20250606
["timestamp","ask_amount","ask_price","bid_price","bid_amount"]
[1749226763496,1.67328152,2507.6,2507.5,0.79695]
[1749226764395,0.79698,2507.5,2507.4,0.8742877]
[1749226764892,0.79698,2507.5,2507.4,0.0773077]
[1749226765093,3.68701752,2507.5,2507.4,0.0773077]
[1749226765594,3.68701752,2507.5,2507.4,0.00597419]
[1749226766191,3.68701752,2507.5,2507.4,0.80298419]
[1749226766390,3.68701752,2507.5,2507.4,0.00597419]
[1749226767891,0.79711,2507.2,2506.9,0.6635]
[1749226768096,0.79711,2507.2,2507.1,0.79706]
[1749226768296,53.48263144,2507.2,2506.9,0.6635]
[1749226768603,53.48263144,2507.2,2506.9,1.46064]
[1749226768604,0.79714,2507.0,2506.9,1.46064]
[1749226768795,1.67577144,2507.0,2506.9,1.46064]
[1749226771397,0.79714,2507.0,2506.9,0.79714]
[1749226772300,1.6746119,2507.0,2506.9,0.79714]
[1749226772495,2.77852,2507.1,2507.0,0.79714]
[1749226772687,2.30467712,2507.1,2507.0,0.79714]
[1749226773496,2.30467712,2507.1,2507.0,0.86847351]
[1749226773697,25.71067712,2507.1,2507.0,0.86847351]
[1749226773897,2.30467712,2507.1,2507.0,0.86847351]
[1749226774101,25.71067712,2507.1,2507.0,0.86847351]
[1749226774501,25.71067712,2507.1,2507.0,0.79714]
[1749226775399,0.7972,2506.9,2506.8,0.79716]
[1749226775600,0.7972,2506.8,2506.7,1.49187419]
[1749226776104,1.45849,2506.9,2506.8,0.7972]
[1749226776300,34.076,2507.2,2506.9,1.99289]
[1749226776497,29.2,2507.2,2507.1,0.79711]
[1749226776899,29.99708,2507.2,2507.1,0.79711]
[1749226777399,0.7972,2506.8,2506.7,1.49188419]
[1749226777603,5.6732,2506.8,2506.7,1.49191419]
[1749226778603,5.6732,2506.8,2506.7,0.00597419]
[1749226778804,6.54958256,2506.8,2506.7,0.00597419]
[1749226779101,0.79742,2506.2,2506.1,0.7974]
[1749226779302,24.20342,2506.2,2506.1,0.7974]
[1749226779700,0.79745,2506.1,2506.0,0.79743]
[1749226779899,23.406,2506.2,2506.1,0.79743]
[1749226780097,24.20339,2506.2,2506.1,0.79743]
[1749226780502,30.00847419,2506.4,2505.5,1.99405]
[1749226780698,0.79741,2506.2,2506.0,0.79743]
[1749226780902,23.406,2506.1,2506.0,0.79746]
[1749226781099,23.406,2506.1,2505.7,1.99389]
[1749226781100,24.28175244,2506.1,2505.7,1.99389]
[1749226781404,0.79741,2506.2,2506.1,0.79742]
[1749226781605,24.29016936,2506.2,2505.8,1.3323]
[1749226781806,24.21243,2506.2,2505.8,1.3323]
[1749226782003,23.415,2506.2,2505.8,1.3323]
[1749226782502,3.2078,2506.3,2506.1,0.79743]
[1749226782706,8.0838,2506.3,2506.2,0.79739]
[1749226783008,4.876,2506.3,2506.2,0.79739]
[1749226783304,5.67336,2506.3,2506.2,0.79739]
[1749226783708,0.79736,2506.3,2506.2,0.79739]
[1749226784003,0.79742,2506.2,2506.1,0.79742]
[1749226784206,0.79743,2506.1,2506.0,1.46673]
[1749226784600,0.79742,2506.2,2506.0,0.6693]
[1749226784803,0.79742,2506.2,2506.1,0.79743]
[1749226785002,8.88117,2506.3,2506.2,0.79739]
[1749226785204,0.00597419,2506.4,2506.3,0.79736]
[1749226785600,0.00597419,2506.4,2506.3,2.75196]
[1749226786405,3.2078,2507.0,2506.9,0.79717]
[1749226786607,27.4902563,2507.0,2506.4,1.99334]
[1749226786803,0.7972,2506.9,2506.8,0.7972]
[1749226787811,0.79722,2506.8,2506.7,0.79722]
[1749226788708,2.06489,2506.9,2506.8,0.79721]
[1749226788908,0.79719,2506.9,2506.8,0.79721]
[1749226789111,27.41496,2507.0,2506.9,0.79717]
[1749226789407,28.2881069,2507.0,2506.9,0.79717]
[1749226789811,27.4909469,2507.0,2506.9,0.79717]
[1749226790307,4.877,2507.0,2506.9,0.79717]
[1749226790803,0.00597419,2507.1,2507.0,0.79714]
[1749226791012,23.41597419,2507.1,2507.0,0.79714]
[1749226791202,0.00597419,2507.1,2507.0,0.79714]
[1749226791711,0.80308419,2507.1,2507.0,0.79714]
[1749226793511,0.79717,2507.0,2506.9,0.79715]
[1749226793714,0.80311419,2507.1,2507.0,0.79714]
[1749226794009,24.21211419,2507.1,2507.0,0.79714]
[1749226794308,4.88297419,2507.1,2507.0,0.79714]
[1749226794505,23.41497419,2507.1,2506.8,0.07133351]
[1749226794910,24.21211419,2507.1,2507.0,0.79714]
[1749226795617,25.08890893,2507.1,2507.0,0.79714]
[1749226795916,24.21211419,2507.1,2507.0,0.79714]
[1749226796117,23.41497419,2507.1,2507.0,0.79714]
[1749226796518,0.00597419,2507.1,2507.0,0.79714]
[1749226797410,0.00597419,2507.1,2507.0,2.10174]
[1749226797822,23.408,2507.6,2507.5,0.79698]
[1749226798016,19.40925858,2507.6,2507.5,1.46888]
[1749226798519,18.532,2507.6,2507.5,1.46888]
[1749226799326,19.32895,2507.6,2507.5,1.46888]
[1749226799534,18.532,2507.6,2507.5,1.46888]
[1749226799728,19.32895,2507.6,2507.5,1.46888]
[1749226799929,18.532,2507.6,2507.5,1.46888]
[1749226800130,19.32895,2507.6,2507.5,1.46888]
[1749226800326,19.32895,2507.6,2507.5,0.6719]
[1749226800529,0.79717,2506.9,2506.8,0.07133351]
[1749226800722,3.2078,2507.4,2506.8,0.07133351]
[1749226800928,27.20208666,2507.3,2507.2,0.79708]
[1749226801128,2.85303666,2507.3,2506.9,0.79716]
[1749226801429,0.87713666,2507.2,2507.1,0.79711]
[1749226801626,3.2078,2507.4,2507.3,0.79704]
[1749226801822,0.89401532,2507.4,2507.2,0.79705]
[1749226802027,24.1934,2507.5,2506.9,4.5099]
[1749226802223,0.79712,2507.1,2507.0,0.79712]
[1749226802433,0.7971,2507.2,2507.1,0.7971]
[1749226803134,8.7112,2507.5,2506.9,4.5099]
[1749226803331,0.00597419,2507.8,2507.4,3.2078]
[1749226803531,1.6923636,2507.7,2507.6,0.79695]
[1749226804034,0.79697,2507.6,2507.5,0.79696]
[1749226804736,0.79692,2507.7,2507.3,0.6733]
[1749226804930,4.88097419,2507.8,2507.7,0.79692]
[1749226805232,5.1837,2508.2,2507.7,0.79692]
[1749226805233,0.79676,2508.2,2507.7,5.20007]
[1749226805436,4.875,2508.4,2508.3,0.79673]
[1749226805739,0.79679,2508.1,2507.8,1.9521]
[1749226805936,0.79678,2508.2,2508.0,0.79681]
[1749226806331,0.00597419,2508.4,2508.3,0.79673]
[1749226806932,0.79673,2508.3,2508.1,1.2687]
[1749226807132,0.79673,2508.3,2508.0,3.2078]
[1749226807335,0.79673,2508.3,2508.2,0.79676]
[1749226807639,0.00597419,2508.4,2508.2,0.79674]
[1749226807828,0.00597419,2508.4,2508.0,3.2078]
[1749226807829,0.80267419,2508.4,2508.3,0.79673]
[1749226808029,0.00597419,2508.4,2508.3,0.79673]
[1749226808441,0.80267419,2508.4,2508.3,0.79673]
[1749226809030,0.00597419,2508.4,2508.3,4.00453]
[1749226809735,0.00597419,2508.4,2508.3,3.2078]
[1749226810037,0.80267419,2508.4,2508.3,3.2078]
[1749226810236,0.00597419,2508.4,2508.3,4.00453]
[1749226812341,1.3069,2509.0,2508.9,0.79654]
[1749226812842,6.1809,2509.0,2508.9,0.79654]
[1749226813241,6.1809,2509.0,2508.8,0.79655]
[1749226813442,2.10342,2509.0,2508.9,0.79654]
[1749226814144,1.3069,2509.0,2508.7,3.2078]
[1749226814344,0.7966,2508.8,2508.7,0.79659]
[1749226814644,0.79656,2508.9,2508.8,0.79657]
[1749226815042,1.3069,2509.0,2508.5,1.99164]
[1749226815340,1.30347419,2509.2,2508.5,1.99164]
[1749226815341,0.00597419,2509.2,2509.1,0.79647]
[1749226815949,0.00597419,2509.2,2509.1,2.05787]
[1749226816134,0.00597419,2509.2,2508.7,1.2614]
[1749226816338,0.00597419,2509.2,2509.1,0.79647]
[1749226816838,4.19e-06,2509.2,2509.1,5.79647]
[1749226817437,1.98981,2510.9,2509.1,5.79647]
[1749226817438,3.2078,2510.6,2510.0,1.99046]
[1749226817638,4.872,2510.5,2510.3,0.79608]
[1749226817833,3.2078,2510.6,2510.5,0.79603]
[1749226818037,3.2078,2510.6,2510.2,1.9201]
[1749226818237,3.2078,2510.6,2510.2,0.6587]
[1749226818437,8.0798,2510.6,2510.2,1.45481]
[1749226818639,0.79607,2510.4,2510.2,0.79612]
[1749226818847,0.79607,2510.4,2510.1,3.21377419]
[1749226819043,0.79607,2510.4,2510.2,0.79612]
[1749226819249,2.14864,2510.5,2510.1,3.21377419]
[1749226819448,2.14864,2510.5,2510.3,0.79606]
[1749226819637,2.14864,2510.5,2510.1,3.21377419]
[1749226819835,2.14864,2510.5,2510.4,0.79606]
[1749226820037,2.14864,2510.5,2510.3,0.79607]
[1749226820443,0.79613,2510.2,2510.1,0.00597419]
[1749226820945,5.66713,2510.2,2510.1,0.00597419]
[1749226821336,8.30863,2510.2,2510.1,0.00597419]
[1749226821746,13.30863,2510.2,2510.1,0.00597419]
[1749226823641,3.43763,2510.2,2510.1,0.00597419]
[1749226823946,27.09763,2510.2,2510.1,0.00597419]
[1749226825037,27.08663,2510.2,2510.1,0.00597419]
[1749226825445,32.08663,2510.2,2510.1,0.00597419]
[1749226825647,0.79629,2509.7,2509.6,0.79631]
[1749226826250,0.79635,2509.5,2509.4,6.69636]
[1749226826745,0.79634,2509.6,2509.5,0.79632]
[1749226827049,2.17074,2509.6,2509.5,0.79632]
[1749226827544,3.877,2509.7,2509.6,0.79631]
[1749226827749,20.1604,2510.1,2510.0,0.79619]
[1749226828052,26.65078,2510.1,2510.0,0.79619]
[1749226828447,29.0624,2510.1,2509.6,1.99078]
[1749226828650,0.79621,2510.0,2509.9,0.79619]
[1749226828844,2.08691,2510.0,2509.9,0.79619]
[1749226829248,7.11191,2510.0,2509.9,0.79619]
[1749226829548,0.79625,2509.9,2509.8,0.79623]
[1749226829747,2.08695,2509.9,2509.8,0.79623]
[1749226830147,1.2907,2509.9,2509.8,0.79623]
[1749226830445,1.2907,2509.9,2509.6,1.99078]
[1749226830446,5.82121,2510.0,2509.9,0.79622]
[1749226830751,3.21377419,2510.7,2510.6,0.796]
[1749226830945,4.19e-06,2510.7,2510.6,9.0288]
[1749226831246,3.2078,2511.9,2510.6,13.2328]
[1749226831446,4.4862,2511.9,2511.3,1.98945]
[1749226831645,0.79566,2511.7,2511.2,3.2078]
[1749226831846,0.79566,2511.7,2511.6,0.79568]
[1749226832039,0.79566,2511.7,2511.4,0.00597419]
[1749226832247,0.79566,2511.7,2511.5,0.79568]
[1749226832551,0.79568,2511.6,2511.5,0.79569]
[1749226832855,0.79571,2511.5,2511.4,0.00597419]
[1749226833148,1.46291,2511.5,2511.4,0.00597419]
[1749226833349,26.55931,2511.5,2511.4,0.00597419]
[1749226833554,1.98958,2511.2,2510.5,0.79602]
[1749226833853,5.19761,2510.9,2510.1,3.2078]
[1749226834147,6.9696,2510.8,2510.1,3.2078]
[1749226834352,3.2078,2510.5,2509.8,3.2078]
[1749226834547,0.86742351,2510.3,2510.2,0.00597419]
[1749226835048,2.81652351,2510.3,2510.2,0.00597419]
[1749226836550,2.74519,2510.3,2510.2,0.00597419]
[1749226837147,3.64979438,2510.3,2510.2,0.00597419]
[1749226838346,5.02997419,2510.4,2510.2,0.00597419]
[1749226838347,0.00597419,2510.4,2510.2,0.00597419]
[1749226838660,0.00597419,2510.4,2510.3,4.00389]
[1749226838852,8.9001,2511.1,2510.8,0.79592]
[1749226839049,0.79598,2510.7,2510.6,0.79598]
[1749226839349,0.79609,2510.3,2510.2,0.00597419]
[1749226839550,22.0668,2510.5,2510.2,0.00597419]
[1749226839751,0.79609,2510.3,2510.2,0.00597419]
[1749226840058,5.82009,2510.3,2510.2,0.00597419]
[1749226840457,6.72350937,2510.3,2510.2,0.00597419]
[1749226842054,0.79608,2510.4,2510.2,0.00597419]
[1749226842254,0.79609,2510.3,2510.2,0.80207419]
[1749226842451,1.70126013,2510.3,2510.2,0.00597419]
[1749226842651,0.7965,2509.0,2508.9,3.2078]
[1749226842846,5.8205,2509.0,2508.5,3.2078]
[1749226843048,5.024,2509.0,2508.5,3.2078]
[1749226843348,5.82052,2509.0,2508.8,0.79655]
[1749226843550,5.024,2509.0,2508.9,0.79654]
[1749226843750,5.024,2509.0,2508.8,0.79655]
[1749226843959,0.79658,2508.8,2508.7,0.79659]
[1749226844455,3.21377419,2509.2,2508.6,1.99751419]
[1749226844759,23.944,2509.1,2509.0,0.79651]
[1749226845148,0.80241419,2509.2,2509.1,0.79647]
[1749226845349,5.03097419,2509.2,2509.1,0.79647]
[1749226845650,0.00597419,2509.2,2509.1,4.00427]
[1749226846057,0.00597419,2509.2,2508.9,1.45363351]
[1749226846058,5.03097419,2509.2,2508.9,0.86786351]
[1749226846255,0.7965,2509.0,2508.9,0.07133351]
[1749226846458,19.7325,2509.0,2508.9,0.07133351]
[1749226846761,0.79659,2508.8,2508.6,0.88232993]
[1749226846950,5.025,2508.7,2508.6,0.88232993]
[1749226847852,5.025,2508.9,2508.6,0.08569993]
[1749226848057,5.82156,2508.9,2508.8,0.79657]
[1749226848258,5.025,2508.9,2508.6,0.08569993]
[1749226848456,0.79659,2508.8,2508.7,0.7966]
[1749226848959,6.2915,2508.9,2508.8,0.79657]
[1749226849161,4.0043,2509.0,2508.9,0.79654]
[1749226849354,0.79657,2508.8,2508.7,0.79657]
[1749226849653,19.73655,2508.9,2508.8,0.79656]
[1749226849859,23.965,2508.9,2508.8,0.79656]
[1749226850160,24.76154,2508.9,2508.8,0.79656]
[1749226850454,4.5047,2509.0,2508.6,0.00597419]
[1749226850658,0.6323,2509.1,2508.6,0.00597419]
[1749226850659,0.6323,2509.1,2509.0,0.7965]
[1749226850857,23.955,2509.1,2508.7,1.99147]
[1749226851157,0.79651,2509.0,2508.9,0.79652]
[1749226852262,0.7965,2509.1,2509.0,0.79651]
[1749226852561,24.7365,2509.1,2509.0,0.79651]
[1749226852863,0.80244419,2509.2,2509.1,0.79648]
[1749226853066,0.7965,2509.1,2509.0,0.79649]
[1749226853359,0.00597419,2509.2,2509.1,0.79647]
[1749226853565,5.03197419,2509.2,2509.1,0.79647]
[1749226853756,5.82841419,2509.2,2509.1,0.79647]
[1749226853956,0.00597419,2509.2,2509.1,0.79647]
[1749226854666,0.00597419,2509.2,2509.1,4.00427]
[1749226855763,0.00597419,2509.2,2509.1,9.00427]
[1749226856163,4.19e-06,2509.2,2509.1,9.00427]
[1749226860469,3.92082,2510.6,2510.5,0.79603]
[1749226860470,20.8308,2510.6,2510.5,0.79603]
[1749226860664,26.7228,2510.6,2510.5,0.79603]
[1749226860867,7.8228,2510.6,2510.5,0.79603]
[1749226861667,7.8228,2510.6,2510.3,1.99022]
[1749226861668,0.79606,2510.5,2510.4,0.79604]
[1749226861860,2.10656,2510.5,2510.4,0.79604]
[1749226862662,0.79606,2510.4,2510.3,0.80204419]
[1749226862872,1.3105,2510.4,2510.3,0.80204419]
[1749226863076,5.7335,2510.6,2510.5,0.79603]
[1749226863364,5.891,2510.6,2510.5,0.79603]
[1749226863773,5.095,2510.6,2510.5,0.79603]
[1749226864566,24.89897,2510.7,2510.6,0.796]
[1749226864769,29.198,2510.7,2510.6,0.796]
[1749226865266,29.198,2510.7,2510.3,0.00597419]
[1749226865475,0.79606,2510.5,2510.4,0.79604]
[1749226866067,3.2078,2510.6,2510.5,0.79603]
[1749226866275,43.77397,2510.7,2510.6,0.796]
[1749226866467,48.86797,2510.7,2510.6,0.796]
[1749226866771,48.072,2510.7,2510.6,0.796]
[1749226866973,29.197,2510.7,2510.6,0.796]
[1749226867265,24.103,2510.7,2510.6,0.796]
[1749226867467,29.197,2510.7,2510.6,0.796]
[1749226867671,0.00597419,2510.8,2510.7,0.79597]
[1749226868269,3.2078,2511.4,2511.3,0.79578]
[1749226868270,5.094,2511.4,2511.3,0.79578]
[1749226868569,0.6425,2511.5,2511.3,0.79575]
[1749226868767,1.3082,2511.4,2511.3,0.79575]
[1749226869071,2.10399,2511.4,2511.3,0.79578]
[1749226870680,1.3082,2511.4,2511.3,0.79578]
[1749226871175,5.7365,2511.5,2511.4,0.79574]
[1749226871567,5.09794282,2511.6,2511.5,0.79571]
[1749226872077,5.89362282,2511.6,2511.5,0.79571]
[1749226872267,7.24072282,2511.6,2511.5,0.79571]
[1749226873075,6.44504282,2511.6,2511.5,0.79571]
[1749226873775,0.79576,2511.5,2511.4,0.79573]
[1749226874080,0.7958,2511.3,2511.2,0.79577]
[1749226874575,0.79578,2511.4,2511.3,0.79575]
[1749226875675,0.79582,2511.3,2511.2,0.79578]
[1749226875880,0.79601,2510.7,2510.6,0.79597]
[1749226876079,3.2078,2510.7,2510.3,0.00597419]
[1749226876267,4.00386,2510.4,2510.3,0.00597419]
[1749226876468,9.09686,2510.4,2510.3,0.00597419]
[1749226876672,0.79625,2509.8,2509.7,0.79628]
[1749226876878,0.79624,2509.9,2509.8,0.79624]
[1749226877178,0.79621,2510.0,2509.9,0.79621]
[1749226877470,26.1379,2510.0,2509.9,0.79622]
[1749226877675,1.3817,2510.0,2509.9,0.79622]
[1749226877874,7.27089,2510.0,2509.9,0.79622]
[1749226878070,6.4747,2510.0,2509.9,0.79622]
[1749226878268,0.00597419,2510.2,2509.7,0.00597419]
[1749226878269,0.00597419,2510.2,2509.8,5.19843]
[1749226878572,0.00597419,2510.2,2510.1,0.79616]
[1749226879571,0.00597419,2510.2,2510.1,2.17156]
[1749226880171,2.0278,2511.0,2510.1,2.17156]
[1749226880172,6.03147,2511.0,2510.9,0.7959]
[1749226880478,25.9808,2511.0,2510.9,0.7959]
[1749226880678,7.1208,2511.0,2510.9,0.7959]
[1749226880876,2.0278,2511.0,2510.9,0.7959]
[1749226881184,7.1208,2511.0,2510.4,1.99011]
[1749226881385,0.79592,2510.9,2510.8,0.79591]
[1749226881572,7.1208,2511.0,2510.9,0.7959]
[1749226881774,7.1208,2511.0,2510.3,3.95051]
[1749226881775,0.79596,2510.8,2510.7,0.79595]
[1749226882277,0.79592,2510.9,2510.8,0.79592]
[1749226882577,0.79596,2510.8,2510.7,0.79595]
[1749226882774,0.79596,2510.8,2509.8,4.65275]
[1749226882775,0.79615,2510.2,2509.9,3.2078]
[1749226882982,0.79618,2510.1,2510.0,0.79617]
[1749226883272,1.2721,2510.1,2509.7,0.00597419]
[1749226883478,1.45222,2510.0,2509.9,0.79622]
[1749226883667,0.79624,2509.9,2509.8,0.79622]
[1749226883871,1.2721,2509.9,2509.8,0.79622]
[1749226884675,2.06832,2509.9,2509.8,0.79622]
[1749226884885,0.79625,2509.8,2509.7,0.00597419]
[1749226885075,2.06835,2509.8,2509.7,0.00597419]
[1749226885668,0.79643,2509.3,2508.9,5.19912]
[1749226885873,0.79641,2509.3,2509.2,0.79642]
[1749226886073,4.00419,2509.4,2509.3,0.79641]
[1749226886280,0.6691,2509.4,2509.3,0.79641]
[1749226886481,1.46548,2509.4,2509.3,0.79641]
[1749226886781,0.79643,2509.3,2509.2,0.79642]
[1749226887169,0.79644,2509.2,2509.1,0.00597419]
[1749226887376,0.79644,2509.2,2509.1,0.80244419]
[1749226887773,5.79644,2509.2,2509.1,0.00597419]
[1749226887978,6.69663387,2509.2,2509.1,0.00597419]
[1749226888377,25.65763387,2509.2,2509.1,0.00597419]
[1749226890284,25.65763387,2509.2,2508.3,9.1078]
[1749226890285,0.79665,2508.6,2508.3,3.2078]
[1749226890483,0.79665,2508.6,2508.5,0.79665]
[1749226890784,0.79665,2508.6,2507.8,3.2078]
[1749226890785,6.99161,2508.6,2507.8,3.2078]
[1749226890980,0.79685,2507.9,2507.8,4.00465]
[1749226891182,0.79685,2507.9,2507.5,4.04534]
[1749226891183,0.79695,2507.6,2507.5,0.79696]
[1749226891386,0.79694,2507.7,2507.6,0.79695]
[1749226891578,0.00597419,2507.8,2507.7,0.79692]
[1749226891774,5.88986419,2507.8,2507.7,0.79692]
[1749226891980,5.09297419,2507.8,2507.3,3.21377419]
[1749226892175,0.79696,2507.6,2507.5,0.79697]
[1749226892391,0.79693,2507.7,2507.6,0.79693]
[1749226892584,5.88987419,2507.8,2507.7,0.79692]
[1749226892983,0.79697,2507.6,2507.5,0.79695]
[1749226893183,0.79695,2507.7,2507.6,0.79694]
[1749226893691,0.79693,2507.7,2507.6,0.79694]
[1749226894487,8.30077419,2507.8,2507.7,0.79692]
[1749226894784,8.30077419,2507.8,2507.6,0.07133351]
[1749226894785,0.79692,2507.7,2507.6,0.07133351]
[1749226894986,0.79692,2507.7,2507.6,0.86828351]
[1749226895784,8.30277419,2507.8,2507.7,0.79692]
[1749226895986,9.09966419,2507.8,2507.7,0.79692]
[1749226896389,8.30277419,2507.8,2507.6,0.07133351]
[1749226896578,9.09969419,2507.8,2507.7,0.79692]
[1749226896982,9.09969419,2507.8,2507.6,0.07133351]
[1749226896983,24.097,2508.3,2508.1,0.79679]
[1749226897292,5.089,2508.0,2507.9,0.79685]
[1749226897790,5.089,2508.0,2507.6,5.27150351]
[1749226897791,0.79692,2507.7,2507.6,3.27913351]
[1749226897992,0.79692,2507.7,2507.6,0.07133351]
[1749226898386,3.2078,2507.8,2507.7,0.79692]
[1749226898581,8.2978,2507.8,2507.7,0.79692]
[1749226898792,5.88689,2507.8,2507.7,0.79692]
[1749226899587,5.09,2507.8,2507.7,0.79692]
[1749226900291,0.64307419,2507.9,2507.7,0.79692]
[1749226900488,0.00597419,2507.9,2507.8,0.79689]
[1749226900690,0.00597419,2507.9,2507.8,2.83649]
[1749226900895,5.09,2508.5,2508.4,0.7967]
[1749226901385,5.88666,2508.5,2508.4,0.7967]
[1749226901689,5.09,2508.5,2508.4,0.7967]
[1749226902390,8.2978,2508.6,2508.5,0.79666]
[1749226902590,8.2978,2508.6,2508.3,0.7967]
[1749226902896,0.79676,2508.3,2508.2,0.79675]
[1749226903387,1.9467,2508.5,2508.2,0.79675]
[1749226903593,2.74338,2508.5,2508.4,0.7967]
[1749226903792,0.6553,2508.5,2508.4,0.7967]
[1749226903994,1.45196,2508.5,2508.4,0.7967]
[1749226904291,0.6553,2508.5,2508.4,0.7967]
[1749226904497,0.00394282,2508.7,2508.6,0.79663]
[1749226906799,0.00394282,2508.7,2508.6,9.00443]
[1749226906800,2.82e-06,2508.7,2508.6,9.00443]
[1749226907296,2.82e-06,2508.7,2508.6,14.09443]
[1749226910599,2.82e-06,2508.7,2508.6,14.16576351]
[1749226913692,2.82e-06,2508.7,2508.6,9.00443]
[1749226914196,2.82e-06,2508.7,2508.6,14.09343]
[1749226915999,2.82e-06,2508.7,2508.6,9.09343]
[1749226916203,2.82e-06,2508.7,2508.6,4.00443]
[1749226917203,2.82e-06,2508.7,2508.6,0.79663]
[1749226917698,2.82e-06,2508.7,2508.6,4.00443]
[1749226918706,2.82e-06,2508.7,2508.6,4.07576351]
[1749226920404,2.82e-06,2508.7,2508.6,6.03566351]
[1749226920702,2.82e-06,2508.7,2508.6,5.96433]
[1749226922301,2.82e-06,2508.7,2508.6,11.00333]
[1749226923802,2.82e-06,2508.7,2508.6,21.90333]
[1749226924208,2.82e-06,2508.7,2508.6,16.90333]
[1749226925909,2.82e-06,2508.7,2508.6,21.90333]
[1749226926510,0.654,2509.6,2509.5,0.79634]
[1749226926808,0.654,2509.6,2509.0,5.19901]
[1749226927106,0.7964,2509.4,2509.3,0.79637]
[1749226928014,2.06107,2509.5,2509.4,0.79637]
[1749226928716,2.06107,2509.5,2509.1,1.99715419]
[1749226928717,0.79644,2509.2,2509.1,0.00597419]
[1749226928907,0.79644,2509.3,2509.1,0.00597419]
[1749226929108,0.79644,2509.3,2509.2,0.79641]
[1749226929606,7.02992,2509.5,2509.1,0.80241419]
[1749226929607,0.79644,2509.2,2509.1,0.80241419]
[1749226929807,0.79644,2509.2,2509.1,0.00597419]
[1749226930013,0.79644,2509.2,2509.1,0.80244419]
[1749226930419,0.79642,2509.4,2509.3,0.79639]
[1749226930621,0.90001919,2509.4,2509.1,0.00597419]
[1749226930822,0.79644,2509.2,2509.1,0.80242419]
[1749226931423,0.79643,2509.3,2509.2,0.7964]
[1749226931612,1.69679903,2509.3,2509.2,0.7964]
[1749226931922,0.90036903,2509.3,2509.2,0.7964]
[1749226932323,0.79636,2509.5,2509.4,0.79638]
[1749226932624,0.90065753,2509.5,2509.4,0.79638]
[1749226932812,8.9008,2509.6,2509.5,0.79635]
[1749226933117,4.76245197,2509.6,2509.5,0.79635]
[1749226933320,0.654,2509.6,2509.5,4.00415]
[1749226934116,1.55495885,2509.6,2509.5,4.00415]
[1749226934427,1.45031,2509.6,2509.5,4.00415]
[1749226934631,0.654,2509.6,2509.5,4.00415]
[1749226935522,1.55568318,2509.6,2509.5,4.00415]
[1749226935921,1.55539792,2509.6,2509.5,4.00415]
[1749226936430,2.35170792,2509.6,2509.5,0.79635]
[1749226937730,1.55539792,2509.6,2509.5,0.79635]
[1749226937930,2.35170792,2509.6,2509.5,0.79635]
[1749226938730,1.55539792,2509.6,2509.5,0.79635]
[1749226939131,2.35170792,2509.6,2509.5,0.79635]
[1749226939731,1.55539792,2509.6,2509.5,0.79635]
[1749226940725,2.35171792,2509.6,2509.5,0.79635]
[1749226940927,1.55539792,2509.6,2509.5,0.79635]
[1749226941230,0.654,2509.6,2509.5,0.79635]
[1749226941631,0.7961,2510.4,2510.3,0.79609]
[1749226941832,1.54663167,2510.4,2510.3,0.40775249]
[1749226942035,2.34269167,2510.4,2510.3,0.40775249]
[1749226942535,3.68689167,2510.4,2510.3,0.40775249]
[1749226942727,0.79617,2510.2,2510.1,0.79614]
[1749226943533,0.79612,2510.3,2510.2,0.79609]
[1749226943841,2.96282248,2510.3,2510.2,0.79609]
[1749226944324,2.16670248,2510.3,2510.1,0.79613]
[1749226944528,0.79616,2510.1,2510.0,0.79616]
[1749226944728,2.0623,2510.3,2510.2,0.79612]
[1749226944935,2.96306191,2510.3,2510.2,0.79612]
[1749226945136,2.96342165,2510.3,2510.2,0.79612]
[1749226945436,0.79615,2510.2,2510.1,0.79613]
[1749226945630,2.06235,2510.2,2510.1,0.79613]
[1749226945835,1.2662,2510.2,2510.1,0.79613]
[1749226946435,0.654,2510.3,2510.2,0.79612]
[1749226946634,1.55489217,2510.3,2510.2,0.79612]
[1749226947232,2.81919217,2510.3,2510.2,0.79612]
[1749226947431,1.9183,2510.3,2510.2,0.79612]
[1749226947932,26.09292,2510.7,2510.2,0.79612]
[1749226947933,24.103,2510.7,2510.6,0.796]
[1749226948139,0.90034959,2510.7,2510.6,0.796]
[1749226948633,2.6157,2511.0,2510.9,0.7959]
[1749226948833,3.51562561,2511.0,2510.9,0.7959]
[1749226949035,1.2643,2511.5,2511.4,0.79574]
[1749226949240,1.2643,2511.5,2511.3,0.79576]
[1749226949241,2.16416179,2511.5,2511.3,0.79576]
[1749226949538,2.06004,2511.5,2511.4,0.79574]
[1749226949939,0.79577,2511.4,2511.3,0.79575]
[1749226950135,1.3317,2511.4,2511.3,0.79575]
[1749226950432,5.038,2511.6,2511.5,0.79571]
[1749226950942,1.98876,2512.2,2511.5,0.79571]
[1749226950943,3.2078,2512.4,2512.3,0.79546]
[1749226951543,0.6398,2512.6,2512.2,0.79548]
[1749226951739,1.3317,2512.3,2512.2,0.79549]
[1749226951944,0.79549,2512.2,2512.1,0.00597419]
[1749226952240,0.79549,2512.2,2512.1,0.80149419]
[1749226952241,0.6818,2512.2,2512.1,0.80149419]
[1749226954346,0.75313351,2512.2,2512.1,0.80149419]
[1749226956947,0.07133351,2512.2,2512.1,0.80149419]
[1749226957345,1.4464,2512.5,2512.4,0.79543]
[1749226957542,0.651,2512.5,2512.4,0.79543]
[1749226957851,0.79544,2512.4,2512.3,0.79544]
[1749226958142,23.9481,2512.8,2512.6,0.79533]
[1749226958143,3.2078,2512.8,2512.6,0.79533]
[1749226958339,0.79534,2512.7,2512.6,0.79533]
[1749226958831,0.6613,2512.9,2512.8,0.7953]
[1749226958832,0.7953,2512.9,2512.8,0.7953]
[1749226959036,0.79523,2513.1,2513.0,0.79521]
[1749226959638,3.40913,2513.4,2513.3,0.79514]
[1749226959838,3.40913,2513.4,2512.8,1.9882]
[1749226959839,2.614,2513.4,2512.8,1.9882]